fUST/lending_fUST_20240613
["ID","MTS","AMOUNT","RATE_DAILY","PERIOD"]
[329304855,1718229049201,-500.0,0.00016986,2]
[329304856,1718229049212,-672.08,0.00016986,2]
[329304857,1718229049223,-708.63,0.00016986,2]
[329304858,1718229049235,-500.0,0.00016986,2]
[329304859,1718229049249,-500.0,0.00016986,2]
[329304860,1718229049261,-548.25,0.00016986,2]
[329304861,1718229049274,-207.53280308,0.00016986,2]
[329304862,1718229049289,-500.0,0.00016986,2]
[329304863,1718229049303,-500.0,0.00016986,2]
[329304864,1718229049314,-500.0,0.00016986,2]
[329304865,1718229049326,-896.75,0.00016986,2]
[329304866,1718229049339,-500.0,0.00016986,2]
[329304867,1718229049350,-500.0,0.00016986,2]
[329304868,1718229049361,-500.0,0.00016986,2]
[329304869,1718229049373,-500.0,0.00016986,2]
[329304870,1718229049386,-500.0,0.00016986,2]
[329304871,1718229049399,-500.0,0.00016986,2]
[329304872,1718229049410,-500.0,0.00016986,2]
[329304873,1718229049421,-500.0,0.00016986,2]
[329304874,1718229049432,-500.0,0.00016986,2]
[329304875,1718229049443,-500.0,0.00016986,2]
[329304876,1718229049454,-276.23015115,0.00016986,2]
[329304877,1718229049465,-500.0,0.00016986,2]
[329304878,1718229049481,-630.09128489,0.00016986,2]
[329304879,1718229049492,-500.0,0.00016986,2]
[329304880,1718229049506,-500.0,0.00016986,2]
[329304881,1718229049526,-613.38,0.00016986,2]
[329304883,1718229049539,-786.08,0.00016986,2]
[329304885,1718229049551,-500.0,0.00016986,2]
[329304887,1718229049567,-500.0,0.00016986,2]
[329304889,1718229049580,-1203.78,0.00016986,2]
[329304891,1718229049591,-500.0,0.00016986,2]
[329304892,1718229049603,-500.0,0.00016986,2]
[329304894,1718229049614,-500.0,0.00016986,2]
[329304896,1718229049625,-268.5794634,0.00016986,2]
[329304898,1718229049636,-1530.07,0.00016986,2]
[329304900,1718229049648,-500.0,0.00016986,2]
[329304902,1718229049659,-500.0,0.00016986,2]
[329304904,1718229049671,-615.2,0.00016986,2]
[329304906,1718229049684,-500.0,0.00016986,2]
[329304908,1718229049702,-500.0,0.00016986,2]
[329304910,1718229049717,-1072.7,0.00016986,2]
[329304912,1718229049728,-500.0,0.00016986,2]
[329304914,1718229049739,-454.39323364,0.00016986,2]
[329304916,1718229049750,-500.0,0.00016986,2]
[329304917,1718229049761,-500.0,0.00016986,2]
[329304919,1718229049772,-500.0,0.00016986,2]
[329304921,1718229049783,-500.0,0.00016986,2]
[329304923,1718229049794,-500.0,0.00016986,2]
[329304925,1718229049805,-3554.71,0.00016986,2]
[329304927,1718229049817,-500.0,0.00016986,2]
[329304929,1718229049835,-500.0,0.00016986,2]
[329304931,1718229049847,-687.87,0.00016986,2]
[329304933,1718229049858,-500.0,0.00016986,2]
[329304935,1718229049871,-500.0,0.00016986,2]
[329304937,1718229049892,-500.0,0.00016986,2]
[329304939,1718229049904,-500.0,0.00016986,2]
[329304941,1718229049916,-854.56,0.00016986,2]
[329304943,1718229049928,-500.0,0.00016986,2]
[329304945,1718229049939,-500.0,0.00016986,2]
[329304947,1718229049958,-500.0,0.00016986,2]
[329304950,1718229049976,-500.0,0.00016986,2]
[329304952,1718229049987,-3231.15,0.00016986,2]
[329304953,1718229049999,-3415.81,0.00016986,2]
[329304956,1718229050024,-500.0,0.00016986,2]
[329304957,1718229050035,-500.0,0.00016986,2]
[329304959,1718229050046,-500.0,0.00016986,2]
[329304961,1718229050057,-8735.61,0.00016986,2]
[329304963,1718229050069,-500.0,0.00016986,2]
[329304965,1718229050086,-500.0,0.00016986,2]
[329304967,1718229050096,-500.0,0.00016986,2]
[329304969,1718229050107,-500.0,0.00016986,2]
[329304982,1718229050118,-500.0,0.00016986,2]
[329304984,1718229050247,-500.0,0.00016986,2]
[329304986,1718229050258,-500.0,0.00016986,2]
[329304988,1718229050269,-500.0,0.00016986,2]
[329304990,1718229050280,-619.05,0.00016986,2]
[329304992,1718229050291,-1837.26,0.00016986,2]
[329304994,1718229050301,-2568.17,0.00016986,2]
[329304996,1718229050312,-500.0,0.00016986,2]
[329304998,1718229050323,-500.0,0.00016986,2]
[329305000,1718229050335,-4899.48,0.00016986,2]
[329305002,1718229050345,-500.0,0.00016986,2]
[329305004,1718229050355,-849.76,0.00016986,2]
[329305006,1718229050372,-946.69,0.00016986,2]
[329305007,1718229050387,-500.0,0.00016986,2]
[329305009,1718229050399,-500.0,0.00016986,2]
[329305011,1718229050410,-500.0,0.00016986,2]
[329305014,1718229050425,-804.25,0.00016986,2]
[329305016,1718229050437,-500.0,0.00016986,2]
[329305017,1718229050447,-500.0,0.00016986,2]
[329305019,1718229050458,-500.0,0.00016986,2]
[329305021,1718229050470,-500.0,0.00016986,2]
[329305023,1718229050482,-500.0,0.00016986,2]
[329305026,1718229050495,-500.0,0.00016986,2]
[329305027,1718229050516,-500.0,0.00016986,2]
[329305030,1718229050532,-500.0,0.00016986,2]
[329305031,1718229050546,-500.0,0.00016986,2]
[329305033,1718229050557,-500.0,0.00016986,2]
[329305036,1718229050569,-500.0,0.00016986,2]
[329305038,1718229050580,-500.0,0.00016986,2]
[329305040,1718229050592,-500.0,0.00016986,2]
[329305042,1718229050604,-500.0,0.00016986,2]
[329305044,1718229050617,-734.26,0.00016986,2]
[329305046,1718229050630,-500.0,0.00016986,2]
[329305048,1718229050641,-500.0,0.00016986,2]
[329305050,1718229050653,-500.0,0.00016986,2]
[329305052,1718229050668,-500.0,0.00016986,2]
[329305054,1718229050681,-500.0,0.00016986,2]
[329305056,1718229050693,-500.0,0.00016986,2]
[329305058,1718229050703,-1171.26,0.00016986,2]
[329305059,1718229050715,-500.0,0.00016986,2]
[329305060,1718229050727,-804.26,0.00016986,2]
[329305061,1718229050740,-581.04,0.00016986,2]
[329305062,1718229050752,-996.87,0.00016986,2]
[329305063,1718229050762,-500.0,0.00016986,2]
[329305064,1718229050773,-1936.43,0.00016986,2]
[329305065,1718229050786,-475.07290006,0.00017119,2]
[329305066,1718229050801,-907.65,0.00017258,2]
[329305067,1718229050813,-500.0,0.00017259,2]
[329305068,1718229050824,-500.0,0.00017259,2]
[329305069,1718229050835,-500.0,0.00017259,2]
[329305070,1718229050846,-500.0,0.00017259,2]
[329305071,1718229050857,-907.65,0.00017259,2]
[329305072,1718229050868,-508.69,0.00017259,2]
[329305073,1718229050879,-508.69,0.00017259,2]
[329305074,1718229050891,-500.0,0.0001726,2]
[329305076,1718229050904,-500.0,0.0001726,2]
[329305078,1718229050918,-500.0,0.0001726,2]
[329305080,1718229050930,-500.0,0.0001726,2]
[329305082,1718229050941,-500.0,0.0001726,2]
[329305084,1718229050953,-500.0,0.0001726,2]
[329305086,1718229050968,-500.0,0.0001726,2]
[329305088,1718229050979,-686.18,0.0001726,2]
[329305090,1718229050991,-500.0,0.0001726,2]
[329305092,1718229051020,-500.0,0.0001726,2]
[329305094,1718229051032,-500.0,0.0001726,2]
[329305096,1718229051044,-650.65,0.0001726,2]
[329305098,1718229051056,-500.0,0.0001726,2]
[329305100,1718229051067,-500.0,0.0001726,2]
[329305102,1718229051078,-500.0,0.0001726,2]
[329305104,1718229051090,-500.0,0.0001726,2]
[329305106,1718229051101,-500.0,0.0001726,2]
[329305108,1718229051112,-500.0,0.0001726,2]
[329305110,1718229051123,-500.0,0.0001726,2]
[329305112,1718229051133,-500.0,0.0001726,2]
[329305114,1718229051144,-500.0,0.0001726,2]
[329305116,1718229051154,-528.81,0.0001726,2]
[329305118,1718229051165,-571.77,0.0001726,2]
[329305120,1718229051176,-500.0,0.0001726,2]
[329305121,1718229051187,-204.40448505,0.0001726,2]
[329305123,1718229051198,-500.0,0.0001726,2]
[329305125,1718229051211,-500.0,0.0001726,2]
[329305128,1718229051224,-500.0,0.0001726,2]
[329305129,1718229051237,-500.0,0.0001726,2]
[329305132,1718229051248,-637.96272413,0.0001726,2]
[329305133,1718229051260,-500.0,0.0001726,2]
[329305135,1718229051270,-500.0,0.0001726,2]
[329305137,1718229051281,-500.0,0.0001726,2]
[329305139,1718229051292,-500.0,0.0001726,2]
[329305141,1718229051304,-500.0,0.0001726,2]
[329305142,1718229051315,-500.0,0.0001726,2]
[329305143,1718229051325,-500.0,0.0001726,2]
[329305144,1718229051336,-672.08,0.0001726,2]
[329305145,1718229051347,-708.63,0.0001726,2]
[329305146,1718229051357,-500.0,0.0001726,2]
[329305147,1718229051366,-500.0,0.0001726,2]
[329305148,1718229051378,-548.25,0.0001726,2]
[329305149,1718229051387,-400.27161015,0.0001726,2]
[329305150,1718229051398,-500.0,0.0001726,2]
[329305151,1718229051408,-896.75,0.0001726,2]
[329305152,1718229051419,-595.16700674,0.0001726,2]
[329305153,1718229051431,-500.0,0.0001726,2]
[329305155,1718229051442,-500.0,0.0001726,2]
[329305157,1718229051453,-500.0,0.0001726,2]
[329305159,1718229051463,-500.0,0.0001726,2]
[329305161,1718229051475,-500.0,0.0001726,2]
[329305163,1718229051486,-500.0,0.0001726,2]
[329305165,1718229051496,-500.0,0.0001726,2]
[329305167,1718229051506,-500.0,0.0001726,2]
[329305169,1718229051519,-500.0,0.0001726,2]
[329305171,1718229051530,-500.0,0.0001726,2]
[329305173,1718229051540,-500.0,0.0001726,2]
[329305175,1718229051552,-613.38,0.0001726,2]
[329305177,1718229051564,-786.08,0.0001726,2]
[329305179,1718229051574,-500.0,0.0001726,2]
[329305181,1718229051585,-500.0,0.0001726,2]
[329305183,1718229051596,-1203.78,0.0001726,2]
[329305185,1718229051606,-500.0,0.0001726,2]
[329305187,1718229051617,-500.0,0.0001726,2]
[329305189,1718229051627,-1530.07,0.0001726,2]
[329305191,1718229051641,-500.0,0.0001726,2]
[329305193,1718229051651,-500.0,0.0001726,2]
[329305195,1718229051662,-615.2,0.0001726,2]
[329305197,1718229051672,-500.0,0.0001726,2]
[329305199,1718229051682,-500.0,0.0001726,2]
[329305201,1718229051696,-1072.7,0.0001726,2]
[329305203,1718229051707,-500.0,0.0001726,2]
[329305205,1718229051717,-500.0,0.0001726,2]
[329305207,1718229051728,-500.0,0.0001726,2]
[329305209,1718229051738,-500.0,0.0001726,2]
[329305211,1718229051748,-500.0,0.0001726,2]
[329305213,1718229051760,-3554.71,0.0001726,2]
[329305215,1718229051772,-500.0,0.0001726,2]
[329305217,1718229051782,-500.0,0.0001726,2]
[329305219,1718229051793,-500.0,0.0001726,2]
[329305221,1718229051804,-687.87,0.0001726,2]
[329305223,1718229051815,-500.0,0.0001726,2]
[329305225,1718229051825,-500.0,0.0001726,2]
[329305227,1718229051837,-500.0,0.0001726,2]
[329305229,1718229051848,-500.0,0.0001726,2]
[329305231,1718229051861,-854.56,0.0001726,2]
[329305233,1718229051873,-500.0,0.0001726,2]
[329305235,1718229051884,-500.0,0.0001726,2]
[329305237,1718229051894,-500.0,0.0001726,2]
[329305239,1718229051905,-500.0,0.0001726,2]
[329305241,1718229051916,-3231.15,0.0001726,2]
[329305243,1718229051927,-3415.81,0.0001726,2]
[329305245,1718229051938,-500.0,0.0001726,2]
[329305247,1718229051949,-500.0,0.0001726,2]
[329305249,1718229051960,-500.0,0.0001726,2]
[329305251,1718229051974,-8735.61,0.0001726,2]
[329305253,1718229051985,-500.0,0.0001726,2]
[329305255,1718229051997,-500.0,0.0001726,2]
[329305257,1718229052025,-500.0,0.0001726,2]
[329305259,1718229052037,-500.0,0.0001726,2]
[329305261,1718229052048,-500.0,0.0001726,2]
[329305263,1718229052059,-500.0,0.0001726,2]
[329305265,1718229052070,-500.0,0.0001726,2]
[329305267,1718229052081,-619.05,0.0001726,2]
[329305269,1718229052091,-1837.26,0.0001726,2]
[329305271,1718229052103,-2568.17,0.0001726,2]
[329305273,1718229052115,-500.0,0.0001726,2]
[329305275,1718229052125,-391.49373107,0.0001726,2]
[329305277,1718229052137,-4899.48,0.0001726,2]
[329305279,1718229052148,-500.0,0.0001726,2]
[329305281,1718229052161,-849.76,0.0001726,2]
[329305283,1718229052172,-946.69,0.0001726,2]
[329305285,1718229052183,-500.0,0.0001726,2]
[329305287,1718229052195,-500.0,0.0001726,2]
[329305289,1718229052205,-804.25,0.0001726,2]
[329305291,1718229052216,-500.0,0.0001726,2]
[329305293,1718229052228,-500.0,0.0001726,2]
[329305295,1718229052239,-500.0,0.0001726,2]
[329305297,1718229052249,-500.0,0.0001726,2]
[329305299,1718229052259,-500.0,0.0001726,2]
[329305301,1718229052270,-500.0,0.0001726,2]
[329305303,1718229052281,-500.0,0.0001726,2]
[329305305,1718229052292,-500.0,0.0001726,2]
[329305307,1718229052303,-500.0,0.0001726,2]
[329305309,1718229052315,-500.0,0.0001726,2]
[329305311,1718229052325,-500.0,0.0001726,2]
[329305313,1718229052336,-500.0,0.0001726,2]
[329305314,1718229052346,-500.0,0.0001726,2]
[329305316,1718229052364,-500.0,0.0001726,2]
[329305318,1718229052375,-734.26,0.0001726,2]
[329305321,1718229052389,-500.0,0.0001726,2]
[329305323,1718229052400,-500.0,0.0001726,2]
[329305325,1718229052410,-500.0,0.0001726,2]
[329305326,1718229052420,-500.0,0.0001726,2]
[329305328,1718229052430,-500.0,0.0001726,2]
[329305330,1718229052441,-1171.26,0.0001726,2]
[329305332,1718229052451,-500.0,0.0001726,2]
[329305334,1718229052462,-804.26,0.0001726,2]
[329305336,1718229052472,-581.04,0.0001726,2]
[329305338,1718229052483,-996.87,0.0001726,2]
[329305340,1718229052494,-642.25321705,0.0001726,2]
[329305342,1718229052503,-475.07290006,0.0001751,2]
[329305344,1718229052513,-1555.18086671,0.00017531,2]
[329305346,1718229052523,-907.65,0.00017532,2]
[329305348,1718229052533,-500.0,0.00017533,2]
[329305350,1718229052546,-500.0,0.00017533,2]
[329305352,1718229052556,-907.65,0.00017533,2]
[329305354,1718229052567,-508.69,0.00017533,2]
[329305356,1718229052577,-500.0,0.00017534,2]
[329305357,1718229052587,-500.0,0.00017534,2]
[329305359,1718229052600,-500.0,0.00017534,2]
[329305360,1718229052610,-500.0,0.00017534,2]
[329305361,1718229052620,-500.0,0.00017534,2]
[329305362,1718229052632,-500.0,0.00017534,2]
[329305363,1718229052642,-500.0,0.00017534,2]
[329305364,1718229052652,-686.18,0.00017534,2]
[329305365,1718229052662,-500.0,0.00017534,2]
[329305366,1718229052672,-500.0,0.00017534,2]
[329305367,1718229052682,-500.0,0.00017534,2]
[329305369,1718229052692,-650.65,0.00017534,2]
[329305371,1718229052702,-500.0,0.00017534,2]
[329305373,1718229052712,-500.0,0.00017534,2]
[329305376,1718229052724,-500.0,0.00017534,2]
[329305377,1718229052734,-500.0,0.00017534,2]
[329305379,1718229052744,-500.0,0.00017534,2]
[329305380,1718229052754,-500.0,0.00017534,2]
[329305382,1718229052765,-500.0,0.00017534,2]
[329305384,1718229052776,-528.81,0.00017534,2]
[329305385,1718229052786,-571.77,0.00017534,2]
[329305386,1718229052796,-500.0,0.00017534,2]
[329305387,1718229052807,-500.0,0.00017534,2]
[329305388,1718229052818,-500.0,0.00017534,2]
[329305389,1718229052828,-500.0,0.00017534,2]
[329305390,1718229052838,-500.0,0.00017534,2]
[329305391,1718229052849,-500.0,0.00017534,2]
[329305392,1718229052859,-500.0,0.00017534,2]
[329305393,1718229052869,-500.0,0.00017534,2]
[329305394,1718229052879,-500.0,0.00017534,2]
[329305395,1718229052890,-500.0,0.00017534,2]
[329305396,1718229052899,-500.0,0.00017534,2]
[329305397,1718229052910,-672.08,0.00017534,2]
[329305398,1718229052920,-708.63,0.00017534,2]
[329305399,1718229052930,-500.0,0.00017534,2]
[329305400,1718229052940,-500.0,0.00017534,2]
[329305401,1718229052950,-548.25,0.00017534,2]
[329305402,1718229052961,-500.0,0.00017534,2]
[329305403,1718229052973,-896.75,0.00017534,2]
[329305404,1718229052982,-500.0,0.00017534,2]
[329305405,1718229052993,-500.0,0.00017534,2]
[329305406,1718229053017,-500.0,0.00017534,2]
[329305407,1718229053028,-500.0,0.00017534,2]
[329305408,1718229053038,-500.0,0.00017534,2]
[329305409,1718229053048,-500.0,0.00017534,2]
[329305410,1718229053058,-500.0,0.00017534,2]
[329305411,1718229053068,-500.0,0.00017534,2]
[329305412,1718229053079,-500.0,0.00017534,2]
[329305413,1718229053089,-500.0,0.00017534,2]
[329305414,1718229053099,-613.38,0.00017534,2]
[329305415,1718229053110,-786.08,0.00017534,2]
[329305416,1718229053120,-500.0,0.00017534,2]
[329305417,1718229053130,-500.0,0.00017534,2]
[329305418,1718229053140,-1203.78,0.00017534,2]
[329305419,1718229053150,-500.0,0.00017534,2]
[329305420,1718229053161,-500.0,0.00017534,2]
[329305421,1718229053171,-1530.07,0.00017534,2]
[329305422,1718229053182,-500.0,0.00017534,2]
[329305423,1718229053192,-615.2,0.00017534,2]
[329305424,1718229053202,-500.0,0.00017534,2]
[329305425,1718229053212,-500.0,0.00017534,2]
[329305426,1718229053223,-500.0,0.00017534,2]
[329305427,1718229053232,-1072.7,0.00017534,2]
[329305428,1718229053243,-500.0,0.00017534,2]
[329305429,1718229053253,-500.0,0.00017534,2]
[329305430,1718229053263,-500.0,0.00017534,2]
[329305431,1718229053273,-303.22026951,0.00017534,2]
[329305432,1718229053284,-3554.71,0.00017534,2]
[329305433,1718229053293,-500.0,0.00017534,2]
[329305434,1718229053304,-500.0,0.00017534,2]
[329305435,1718229053314,-687.87,0.00017534,2]
[329305436,1718229053324,-500.0,0.00017534,2]
[329305437,1718229053334,-508.33945223,0.00017534,2]
[329305438,1718229053345,-315.91901536,0.00017534,2]
[329305439,1718229053355,-854.56,0.00017534,2]
[329305440,1718229053365,-500.0,0.00017534,2]
[329305441,1718229053375,-500.0,0.00017534,2]
[329305442,1718229053386,-500.0,0.00017534,2]
[329305443,1718229053396,-500.0,0.00017534,2]
[329305444,1718229053406,-3231.15,0.00017534,2]
[329305445,1718229053417,-3415.81,0.00017534,2]
[329305446,1718229053427,-500.0,0.00017534,2]
[329305447,1718229053546,-500.0,0.00017534,2]
[329305448,1718229053563,-500.0,0.00017534,2]
[329305449,1718229053575,-8735.61,0.00017534,2]
[329305450,1718229053586,-500.0,0.00017534,2]
[329305451,1718229053598,-500.0,0.00017534,2]
[329305452,1718229053610,-500.0,0.00017534,2]
[329305453,1718229053620,-500.0,0.00017534,2]
[329305454,1718229053631,-500.0,0.00017534,2]
[329305455,1718229053642,-500.0,0.00017534,2]
[329305456,1718229053652,-500.0,0.00017534,2]
[329305457,1718229053662,-619.05,0.00017534,2]
[329305458,1718229053673,-1837.26,0.00017534,2]
[329305459,1718229053683,-2568.17,0.00017534,2]
[329305460,1718229053694,-500.0,0.00017534,2]
[329305461,1718229053704,-4899.48,0.00017534,2]
[329305462,1718229053714,-500.0,0.00017534,2]
[329305463,1718229053725,-849.76,0.00017534,2]
[329305464,1718229053734,-946.69,0.00017534,2]
[329305465,1718229053744,-500.0,0.00017534,2]
[329305466,1718229053754,-500.0,0.00017534,2]
[329305467,1718229053764,-804.25,0.00017534,2]
[329305468,1718229053776,-475.87266634,0.00017534,2]
[329305469,1718229053788,-504.63814823,0.00017534,2]
[329305470,1718229053812,-500.0,0.00017534,2]
[329305471,1718229053824,-500.0,0.00017534,2]
[329305472,1718229053835,-500.0,0.00017534,2]
[329305473,1718229053848,-500.0,0.00017534,2]
[329305474,1718229053860,-500.0,0.00017534,2]
[329305475,1718229053872,-500.0,0.00017534,2]
[329305476,1718229053884,-500.0,0.00017534,2]
[329305477,1718229053896,-500.0,0.00017534,2]
[329305478,1718229053908,-500.0,0.00017534,2]
[329305479,1718229053918,-500.0,0.00017534,2]
[329305480,1718229053929,-500.0,0.00017534,2]
[329305481,1718229053939,-734.26,0.00017534,2]
[329305482,1718229053950,-500.0,0.00017534,2]
[329305483,1718229053968,-500.0,0.00017534,2]
[329305484,1718229053979,-500.0,0.00017534,2]
[329305485,1718229053991,-1171.26,0.00017534,2]
[329305486,1718229054016,-500.0,0.00017534,2]
[329305487,1718229054028,-804.26,0.00017534,2]
[329305488,1718229054038,-581.04,0.00017534,2]
[329305489,1718229054049,-996.87,0.00017534,2]
[329305490,1718229054061,-585.1386242,0.00017582,2]
[329305491,1718229054071,-907.65,0.00017806,2]
[329305492,1718229054082,-500.0,0.00017807,2]
[329305493,1718229054092,-907.65,0.00017807,2]
[329305494,1718229054103,-508.69,0.00017807,2]
[329305495,1718229054113,-2548.06564417,0.00017808,13]
[329305496,1718229054124,-499.18,0.00017808,2]
[329305497,1718229054135,-500.0,0.00017808,2]
[329305498,1718229054145,-500.0,0.00017808,2]
[329305499,1718229054161,-686.18,0.00017808,2]
[329305500,1718229054172,-500.0,0.00017808,2]
[329305501,1718229054183,-500.0,0.00017808,2]
[329305502,1718229054195,-650.65,0.00017808,2]
[329305503,1718229054205,-500.0,0.00017808,2]
[329305504,1718229054218,-500.0,0.00017808,2]
[329305505,1718229054231,-500.0,0.00017808,2]
[329305506,1718229054243,-500.0,0.00017808,2]
[329305507,1718229054254,-500.0,0.00017808,2]
[329305508,1718229054265,-571.77,0.00017808,2]
[329305509,1718229054276,-528.81,0.00017808,2]
[329305510,1718229054286,-500.0,0.00017808,2]
[329305511,1718229054297,-500.0,0.00017808,2]
[329305512,1718229054307,-500.0,0.00017808,2]
[329305513,1718229054318,-500.0,0.00017808,2]
[329305514,1718229054328,-500.0,0.00017808,2]
[329305515,1718229054338,-500.0,0.00017808,2]
[329305516,1718229054349,-500.0,0.00017808,2]
[329305517,1718229054360,-500.0,0.00017808,2]
[329305518,1718229054370,-500.0,0.00017808,2]
[329305519,1718229054381,-500.0,0.00017808,2]
[329305520,1718229054392,-672.08,0.00017808,2]
[329305521,1718229054403,-708.63,0.00017808,2]
[329305522,1718229054414,-500.0,0.00017808,2]
[329305523,1718229054425,-548.25,0.00017808,2]
[329305524,1718229054436,-500.0,0.00017808,2]
[329305525,1718229054447,-896.75,0.00017808,2]
[329305526,1718229054457,-500.0,0.00017808,2]
[329305527,1718229054469,-500.0,0.00017808,2]
[329305528,1718229054482,-500.0,0.00017808,2]
[329305529,1718229054492,-500.0,0.00017808,2]
[329305530,1718229054503,-500.0,0.00017808,2]
[329305531,1718229054521,-500.0,0.00017808,2]
[329305532,1718229054538,-203.08,0.00017808,2]
[329305533,1718229054553,-500.0,0.00017808,2]
[329305534,1718229054571,-500.0,0.00017808,2]
[329305535,1718229054582,-613.38,0.00017808,2]
[329305536,1718229054595,-786.08,0.00017808,2]
[329305537,1718229054609,-500.0,0.00017808,2]
[329305538,1718229054620,-500.0,0.00017808,2]
[329305539,1718229054632,-1203.78,0.00017808,2]
[329305540,1718229054643,-500.0,0.00017808,2]
[329305541,1718229054654,-500.0,0.00017808,2]
[329305542,1718229054664,-1530.07,0.00017808,2]
[329305543,1718229054674,-500.0,0.00017808,2]
[329305544,1718229054685,-615.2,0.00017808,2]
[329305545,1718229054696,-500.0,0.00017808,2]
[329305546,1718229054706,-369.19017065,0.00017808,2]
[329305547,1718229054717,-500.0,0.00017808,2]
[329305548,1718229054730,-1072.7,0.00017808,2]
[329305549,1718229054740,-500.0,0.00017808,2]
[329305550,1718229054752,-500.0,0.00017808,2]
[329305551,1718229054762,-500.0,0.00017808,2]
[329305552,1718229054773,-3554.71,0.00017808,2]
[329305553,1718229054787,-500.0,0.00017808,2]
[329305554,1718229054797,-500.0,0.00017808,2]
[329305555,1718229054807,-687.87,0.00017808,2]
[329305556,1718229054818,-500.0,0.00017808,2]
[329305557,1718229054829,-854.56,0.00017808,2]
[329305558,1718229054840,-151.0,0.00017808,2]
[329305559,1718229054850,-500.0,0.00017808,2]
[329305560,1718229054861,-500.0,0.00017808,2]
[329305561,1718229054873,-500.0,0.00017808,2]
[329305562,1718229054883,-3231.15,0.00017808,2]
[329305563,1718229054896,-3415.81,0.00017808,2]
[329305564,1718229054907,-500.0,0.00017808,2]
[329305565,1718229054924,-500.0,0.00017808,2]
[329305566,1718229054936,-500.0,0.00017808,2]
[329305567,1718229054950,-8735.61,0.00017808,2]
[329305568,1718229054966,-500.0,0.00017808,2]
[329305569,1718229054984,-500.0,0.00017808,2]
[329305570,1718229055023,-500.0,0.00017808,2]
[329305571,1718229055039,-500.0,0.00017808,2]
[329305572,1718229055053,-500.0,0.00017808,2]
[329305573,1718229055068,-500.0,0.00017808,2]
[329305574,1718229055079,-619.05,0.00017808,2]
[329305575,1718229055092,-1837.26,0.00017808,2]
[329305576,1718229055103,-151.0,0.00017808,2]
[329305577,1718229055115,-2568.17,0.00017808,2]
[329305578,1718229055127,-197.811858,0.00017808,2]
[329305579,1718229055139,-500.0,0.00017808,2]
[329305580,1718229055151,-197.811858,0.00017808,2]
[329305581,1718229055162,-4899.48,0.00017808,2]
[329305582,1718229055173,-500.0,0.00017808,2]
[329305583,1718229055184,-849.76,0.00017808,2]
[329305584,1718229055197,-946.69,0.00017808,2]
[329305585,1718229055213,-500.0,0.00017808,2]
[329305586,1718229055227,-500.0,0.00017808,2]
[329305587,1718229055242,-804.25,0.00017808,2]
[329305588,1718229055258,-500.0,0.00017808,2]
[329305589,1718229055272,-500.0,0.00017808,2]
[329305590,1718229055289,-151.0,0.00017808,2]